[Event "GrandPrix_30.05"]
[Site "Chess.com"]
[Date "2020.05.30"]
[Round "4"]
[White "Alexander_Donchenko"]
[Black "BMOchsner"]
[Result "0-1"]
[WhiteElo "2587"]
[BlackElo "2328"]
[TimeControl "600+2"]
[EndTime "9:57:43 PDT"]
[Termination "BMOchsner won on time"]

1. Nf3 {[%clk 0:10:01.9]} 1... d5 {[%clk 0:09:57]} 2. g3 {[%clk 0:10:01]} 2...
Nd7 {[%clk 0:09:56.7]} 3. d4 {[%clk 0:10:01.1]} 3... b5 {[%clk 0:09:57.7]} 4.
Bg2 {[%clk 0:09:58.6]} 4... Ngf6 {[%clk 0:09:56]} 5. O-O {[%clk 0:09:50]} 5...
e6 {[%clk 0:09:55.7]} 6. a4 {[%clk 0:09:45.8]} 6... b4 {[%clk 0:09:56.1]} 7. c4
{[%clk 0:09:46.9]} 7... bxc3 {[%clk 0:09:55.5]} 8. bxc3 {[%clk 0:09:47.8]} 8...
Be7 {[%clk 0:09:01.3]} 9. c4 {[%clk 0:09:43.2]} 9... c6 {[%clk 0:08:43.8]} 10.
c5 {[%clk 0:09:27.1]} 10... Ne4 {[%clk 0:08:10.7]} 11. Qd3 {[%clk 0:08:58.3]}
11... a5 {[%clk 0:07:57.8]} 12. Nbd2 {[%clk 0:08:46.4]} 12... Ba6 {[%clk
0:07:57.4]} 13. Qe3 {[%clk 0:08:46.3]} 13... f5 {[%clk 0:07:36.6]} 14. Re1
{[%clk 0:07:39]} 14... O-O {[%clk 0:07:27.7]} 15. Nxe4 {[%clk 0:07:19.8]} 15...
dxe4 {[%clk 0:07:17.6]} 16. Ng5 {[%clk 0:07:00.7]} 16... Bc4 {[%clk 0:06:18.8]}
17. f3 {[%clk 0:06:25.6]} 17... h6 {[%clk 0:05:36.5]} 18. Qc3 {[%clk 0:05:46.5]}
18... Bd5 {[%clk 0:05:11.1]} 19. Nxe4 {[%clk 0:05:45.4]} 19... e5 {[%clk
0:04:08]} 20. Nd6 {[%clk 0:05:01.2]} 20... exd4 {[%clk 0:04:06.6]} 21. Qc2
{[%clk 0:05:00.5]} 21... Bxd6 {[%clk 0:03:10.3]} 22. cxd6 {[%clk 0:05:02.4]}
22... c5 {[%clk 0:03:04.3]} 23. e4 {[%clk 0:04:48.6]} 23... fxe4 {[%clk
0:02:42.4]} 24. fxe4 {[%clk 0:04:50.5]} 24... Be6 {[%clk 0:02:25.9]} 25. e5
{[%clk 0:04:37.6]} 25... Rb8 {[%clk 0:02:26]} 26. Bxh6 {[%clk 0:04:21.9]} 26...
Qe8 {[%clk 0:01:38.1]} 27. Bf4 {[%clk 0:03:49.2]} 27... c4 {[%clk 0:01:30.3]}
28. Qd2 {[%clk 0:03:33]} 28... d3 {[%clk 0:01:25.8]} 29. Qxa5 {[%clk 0:02:57.9]}
29... Rb2 {[%clk 0:01:06]} 30. Rab1 {[%clk 0:02:42.2]} 30... Qb8 {[%clk
0:00:57.2]} 31. Rxb2 {[%clk 0:02:32]} 31... Qxb2 {[%clk 0:00:58]} 32. Bd5 {[%clk
0:02:32.8]} 32... Qd4+ {[%clk 0:00:42.9]} 33. Be3 {[%clk 0:01:52.9]} 33... Qxd5
{[%clk 0:00:43.5]} 34. Qxd5 {[%clk 0:01:45.8]} 34... Bxd5 {[%clk 0:00:44.6]} 35.
Bd4 {[%clk 0:01:37]} 35... Be6 {[%clk 0:00:36.3]} 36. a5 {[%clk 0:01:37.1]}
36... d2 {[%clk 0:00:30.9]} 37. Rd1 {[%clk 0:01:36.4]} 37... Bh3 {[%clk
0:00:27.2]} 38. a6 {[%clk 0:01:12.5]} 38... Rf1+ {[%clk 0:00:13.2]} 39. Rxf1
{[%clk 0:01:12.9]} 39... Bxf1 {[%clk 0:00:14.2]} 40. a7 {[%clk 0:01:14.4]} 40...
d1=Q {[%clk 0:00:13.8]} 41. a8=Q+ {[%clk 0:01:15.7]} 41... Nf8 {[%clk
0:00:14.3]} 42. Qa1 {[%clk 0:00:35.6]} 42... Qxa1 {[%clk 0:00:14.8]} 43. Bxa1
{[%clk 0:00:37.5]} 43... Bd3 {[%clk 0:00:14.9]} 44. Kf2 {[%clk 0:00:26.1]} 44...
Kf7 {[%clk 0:00:15.8]} 45. Ke3 {[%clk 0:00:25.2]} 45... Ke6 {[%clk 0:00:17]} 46.
Kf4 {[%clk 0:00:15.2]} 46... Nd7 {[%clk 0:00:18.1]} 47. h4 {[%clk 0:00:12.6]}
47... Nb6 {[%clk 0:00:18.4]} 48. Ke3 {[%clk 0:00:11.8]} 48... Nd7 {[%clk
0:00:17.1]} 49. Kf4 {[%clk 0:00:12.3]} 49... Nc5 {[%clk 0:00:16]} 50. Ke3 {[%clk
0:00:05.9]} 50... Ne4 {[%clk 0:00:15.2]} 51. g4 {[%clk 0:00:07.1]} 51... Nc5
{[%clk 0:00:14.2]} 52. h5 {[%clk 0:00:06]} 52... Nd7 {[%clk 0:00:12.3]} 53. Kf4
{[%clk 0:00:07.1]} 53... Be2 {[%clk 0:00:13.2]} 54. Kg5 {[%clk 0:00:05.9]} 54...
Bd3 {[%clk 0:00:08.4]} 55. h6 {[%clk 0:00:04.3]} 55... gxh6+ {[%clk 0:00:08.1]}
56. Kxh6 {[%clk 0:00:06.2]} 56... Nb6 {[%clk 0:00:08.1]} 57. g5 {[%clk
0:00:05.9]} 57... Nd5 {[%clk 0:00:07.1]} 58. g6 {[%clk 0:00:05.4]} 58... Bxg6
{[%clk 0:00:05.3]} 59. Kxg6 {[%clk 0:00:07.3]} 59... c3 {[%clk 0:00:05.3]} 60.
Kg7 {[%clk 0:00:03.4]} 60... c2 {[%clk 0:00:03.4]} 61. Bb2 {[%clk 0:00:04.8]}
61... Nb4 {[%clk 0:00:03.6]} 62. Kf8 {[%clk 0:00:05.4]} 62... Nd3 {[%clk
0:00:04.1]} 63. Ba3 {[%clk 0:00:06.9]} 63... Nxe5 {[%clk 0:00:05.1]} 64. Ke8
{[%clk 0:00:08.3]} 64... Nd7 {[%clk 0:00:05.2]} 65. Kd8 {[%clk 0:00:08.6]} 65...
Nb6 {[%clk 0:00:06.4]} 66. Kc7 {[%clk 0:00:07]} 66... Nc4 {[%clk 0:00:07.5]} 67.
d7 {[%clk 0:00:07.7]} 67... Nxa3 {[%clk 0:00:07.9]} 68. d8=Q {[%clk 0:00:09.3]}
68... c1=Q+ {[%clk 0:00:09.2]} 69. Kb8 {[%clk 0:00:10.6]} 69... Qb2+ {[%clk
0:00:10.1]} 70. Ka8 {[%clk 0:00:11.3]} 70... Qg2+ {[%clk 0:00:10]} 71. Kb8
{[%clk 0:00:12.1]} 71... Qg3+ {[%clk 0:00:09.1]} 72. Qc7 {[%clk 0:00:12.9]}
72... Qb3+ {[%clk 0:00:09.1]} 73. Qb7 {[%clk 0:00:13.5]} 73... Nb5 {[%clk
0:00:10.2]} 74. Qe4+ {[%clk 0:00:11.8]} 74... Kd6 {[%clk 0:00:10.3]} 75. Qf4+
{[%clk 0:00:10.9]} 75... Kc5 {[%clk 0:00:10]} 76. Qe5+ {[%clk 0:00:10.8]} 76...
Kc6 {[%clk 0:00:09.4]} 77. Qe4+ {[%clk 0:00:10.7]} 77... Kb6 {[%clk 0:00:08.6]}
78. Qg6+ {[%clk 0:00:10.6]} 78... Ka5 {[%clk 0:00:08.9]} 79. Qg5 {[%clk
0:00:06.3]} 79... Qf7 {[%clk 0:00:06.7]} 80. Qd8+ {[%clk 0:00:04]} 80... Ka6
{[%clk 0:00:05.6]} 81. Qc8+ {[%clk 0:00:05.4]} 81... Kb6 {[%clk 0:00:05]} 0-1

[Event "GrandPrix_30.05"]
[Site "Chess.com"]
[Date "2020.05.30"]
[Round "4"]
[White "viktorskliarov"]
[Black "Kezin_Roman"]
[Result "1/2-1/2"]
[WhiteElo "2240"]
[BlackElo "2499"]
[TimeControl "600+2"]
[EndTime "9:57:46 PDT"]
[Termination "Game drawn - insufficient material"]

1. e4 {[%clk 0:10:01.9]} 1... c5 {[%clk 0:09:56.7]} 2. Nf3 {[%clk 0:10:02.6]}
2... e6 {[%clk 0:09:57.3]} 3. d4 {[%clk 0:10:02.9]} 3... cxd4 {[%clk 0:09:59.2]}
4. Nxd4 {[%clk 0:10:04.5]} 4... Nc6 {[%clk 0:10:00.2]} 5. Nc3 {[%clk 0:10:05.7]}
5... Qc7 {[%clk 0:10:01.2]} 6. Be2 {[%clk 0:10:06.9]} 6... a6 {[%clk 0:10:01.9]}
7. O-O {[%clk 0:10:07.5]} 7... Nf6 {[%clk 0:10:02.8]} 8. Be3 {[%clk 0:10:08]}
8... Be7 {[%clk 0:10:03.1]} 9. f4 {[%clk 0:10:07.9]} 9... d6 {[%clk 0:10:03]}
10. Kh1 {[%clk 0:10:09]} 10... O-O {[%clk 0:10:02]} 11. Qe1 {[%clk 0:10:10.2]}
11... Nxd4 {[%clk 0:10:01.1]} 12. Bxd4 {[%clk 0:10:10.8]} 12... b5 {[%clk
0:10:02.1]} 13. a3 {[%clk 0:10:11.1]} 13... Bb7 {[%clk 0:10:01.2]} 14. Qg3
{[%clk 0:10:11.4]} 14... Rad8 {[%clk 0:10:01.1]} 15. Rae1 {[%clk 0:09:59.7]}
15... Rfe8 {[%clk 0:09:57.2]} 16. Bd3 {[%clk 0:09:55.7]} 16... Rd7 {[%clk
0:09:57.4]} 17. e5 {[%clk 0:09:34.2]} 17... dxe5 {[%clk 0:09:56.4]} 18. Bxe5
{[%clk 0:09:34.7]} 18... Qd8 {[%clk 0:09:57.6]} 19. f5 {[%clk 0:09:11.3]} 19...
Bd6 {[%clk 0:09:57.4]} 20. Qh3 {[%clk 0:08:07.8]} 20... Bxe5 {[%clk 0:08:27.9]}
21. Rxe5 {[%clk 0:08:06.3]} 21... exf5 {[%clk 0:07:28.9]} 22. Rexf5 {[%clk
0:06:19.5]} 22... Rd6 {[%clk 0:07:24.1]} 23. Qh4 {[%clk 0:05:46.6]} 23... h6
{[%clk 0:04:34.4]} 24. a4 {[%clk 0:04:59.1]} 24... Rd4 {[%clk 0:03:31.7]} 25.
R5f4 {[%clk 0:04:02]} 25... Rxd3 {[%clk 0:03:23.1]} 26. cxd3 {[%clk 0:03:40.2]}
26... g5 {[%clk 0:03:21.8]} 27. Qxh6 {[%clk 0:00:31.7]} 27... gxf4 {[%clk
0:03:12]} 28. Qg5+ {[%clk 0:00:32.3]} 28... Kh8 {[%clk 0:02:30.6]} 29. axb5
{[%clk 0:00:17]} 29... Rg8 {[%clk 0:02:13.1]} 30. Qh4+ {[%clk 0:00:17.6]} 30...
Nh7 {[%clk 0:02:10]} 31. Qxd8 {[%clk 0:00:18]} 31... Rxd8 {[%clk 0:02:11.9]} 32.
bxa6 {[%clk 0:00:14.9]} 32... Bxa6 {[%clk 0:02:08.5]} 33. Rxf4 {[%clk
0:00:15.9]} 33... Kg7 {[%clk 0:02:04.7]} 34. d4 {[%clk 0:00:17]} 34... Nf6
{[%clk 0:01:59.2]} 35. Kg1 {[%clk 0:00:16.6]} 35... Rb8 {[%clk 0:01:48.3]} 36.
Rf2 {[%clk 0:00:17.3]} 36... Bc4 {[%clk 0:01:44.8]} 37. Rd2 {[%clk 0:00:17.2]}
37... Re8 {[%clk 0:01:38.3]} 38. Kf2 {[%clk 0:00:14.9]} 38... Ng4+ {[%clk
0:01:38.3]} 39. Kg3 {[%clk 0:00:11.3]} 39... Ne3 {[%clk 0:01:39.1]} 40. Kf3
{[%clk 0:00:07.3]} 40... Nf1 {[%clk 0:01:13.9]} 41. Rd1 {[%clk 0:00:08.4]} 41...
Nxh2+ {[%clk 0:01:10.2]} 42. Kf4 {[%clk 0:00:09.8]} 42... Nf1 {[%clk 0:01:05.6]}
43. d5 {[%clk 0:00:10]} 43... Ne3 {[%clk 0:01:06.3]} 44. Rd4 {[%clk 0:00:10.5]}
44... Nxg2+ {[%clk 0:00:49.3]} 45. Kf3 {[%clk 0:00:11.6]} 45... Ne1+ {[%clk
0:00:48.2]} 46. Kg3 {[%clk 0:00:10.1]} 46... Bb3 {[%clk 0:00:20.7]} 47. d6
{[%clk 0:00:06.1]} 47... Nc2 {[%clk 0:00:21.8]} 48. Re4 {[%clk 0:00:04.5]} 48...
Rd8 {[%clk 0:00:19.5]} 49. Nb5 {[%clk 0:00:03.6]} 49... Be6 {[%clk 0:00:16.5]}
50. Rf4 {[%clk 0:00:03.6]} 50... Rb8 {[%clk 0:00:11.8]} 51. Nc7 {[%clk
0:00:04.4]} 51... Bd7 {[%clk 0:00:10.5]} 52. Nd5 {[%clk 0:00:04.9]} 52... Rxb2
{[%clk 0:00:08.5]} 53. Ne7 {[%clk 0:00:06.1]} 53... Rb3+ {[%clk 0:00:06.1]} 54.
Rf3 {[%clk 0:00:07.5]} 54... Rxf3+ {[%clk 0:00:06.8]} 55. Kxf3 {[%clk
0:00:08.4]} 55... Kf6 {[%clk 0:00:07]} 56. Kf4 {[%clk 0:00:08.5]} 56... Ke6
{[%clk 0:00:07.5]} 57. Nf5 {[%clk 0:00:09.7]} 57... Nb4 {[%clk 0:00:07.3]} 58.
Nh6 {[%clk 0:00:10.4]} 58... f6 {[%clk 0:00:08.2]} 59. Ng8 {[%clk 0:00:10.2]}
59... Nd5+ {[%clk 0:00:08.9]} 60. Kf3 {[%clk 0:00:11]} 60... f5 {[%clk
0:00:09.9]} 61. Nh6 {[%clk 0:00:12.2]} 61... f4 {[%clk 0:00:09.5]} 62. Ke4
{[%clk 0:00:11.8]} 62... Kxd6 {[%clk 0:00:06.9]} 63. Nf7+ {[%clk 0:00:13.1]}
63... Kc5 {[%clk 0:00:06.1]} 64. Ne5 {[%clk 0:00:11.7]} 64... Bb5 {[%clk
0:00:04.7]} 65. Ng6 {[%clk 0:00:10.8]} 65... Bc6 {[%clk 0:00:02.7]} 66. Nxf4
{[%clk 0:00:11.5]} 66... Nc3+ {[%clk 0:00:04]} 67. Ke5 {[%clk 0:00:13]} 67...
Nb5 {[%clk 0:00:04.2]} 68. Ne6+ {[%clk 0:00:13]} 68... Kc4 {[%clk 0:00:05.3]}
69. Nf4 {[%clk 0:00:14.3]} 69... Nd4 {[%clk 0:00:06]} 70. Ne6 {[%clk 0:00:15.1]}
70... Nf3+ {[%clk 0:00:06.8]} 71. Kf4 {[%clk 0:00:16.3]} 71... Nd2 {[%clk
0:00:06.9]} 72. Ke5 {[%clk 0:00:17.1]} 72... Nf3+ {[%clk 0:00:07.3]} 73. Kf4
{[%clk 0:00:18.4]} 73... Ne1 {[%clk 0:00:08.7]} 74. Ke5 {[%clk 0:00:19.5]} 74...
Nd3+ {[%clk 0:00:10.2]} 75. Kd6 {[%clk 0:00:20.8]} 75... Bf3 {[%clk 0:00:11.4]}
76. Ng5 {[%clk 0:00:21.5]} 76... Bg2 {[%clk 0:00:12.6]} 77. Ne6 {[%clk
0:00:22.5]} 77... Nf2 {[%clk 0:00:10.9]} 78. Nf4 {[%clk 0:00:23.3]} 78... Bf3
{[%clk 0:00:11.4]} 79. Ne6 {[%clk 0:00:24]} 79... Nd3 {[%clk 0:00:11.7]} 80. Ng5
{[%clk 0:00:24.3]} 80... Bg4 {[%clk 0:00:10.3]} 81. Ne6 {[%clk 0:00:23.8]} 81...
Nf2 {[%clk 0:00:09.6]} 82. Nf4 {[%clk 0:00:23.2]} 82... Kd4 {[%clk 0:00:10.2]}
83. Ne6+ {[%clk 0:00:24.4]} 83... Ke4 {[%clk 0:00:11.8]} 84. Nc5+ {[%clk
0:00:24.7]} 84... Kf5 {[%clk 0:00:13.2]} 85. Kd5 {[%clk 0:00:25.5]} 85... Bf3+
{[%clk 0:00:13.7]} 86. Kd6 {[%clk 0:00:26.5]} 86... Ng4 {[%clk 0:00:15.6]} 87.
Ne6 {[%clk 0:00:26.6]} 87... Ne5 {[%clk 0:00:16.5]} 88. Nd4+ {[%clk 0:00:27.5]}
88... Ke4 {[%clk 0:00:18.1]} 89. Nxf3 {[%clk 0:00:28.8]} 1/2-1/2

[Event "GrandPrix_30.05"]
[Site "Chess.com"]
[Date "2020.05.30"]
[Round "4"]
[White "Jaka_Brilej"]
[Black "elohunter1999"]
[Result "1-0"]
[WhiteElo "2124"]
[BlackElo "2152"]
[TimeControl "600+2"]
[EndTime "9:58:04 PDT"]
[Termination "Jaka_Brilej won by resignation"]

1. e4 {[%clk 0:10:01.9]} 1... c5 {[%clk 0:09:57.5]} 2. Nf3 {[%clk 0:09:57.6]}
2... Nc6 {[%clk 0:09:56.3]} 3. d4 {[%clk 0:09:59.1]} 3... cxd4 {[%clk
0:09:54.8]} 4. Nxd4 {[%clk 0:09:59.7]} 4... Nf6 {[%clk 0:09:56.3]} 5. Nc3 {[%clk
0:09:59.9]} 5... d6 {[%clk 0:09:56.7]} 6. f3 {[%clk 0:09:58.9]} 6... e5 {[%clk
0:09:52.7]} 7. Nb3 {[%clk 0:09:59.6]} 7... Be7 {[%clk 0:09:51.8]} 8. Be3 {[%clk
0:09:59.9]} 8... O-O {[%clk 0:09:34]} 9. Qd2 {[%clk 0:10:00.7]} 9... a5 {[%clk
0:09:06.7]} 10. a4 {[%clk 0:09:49.7]} 10... Be6 {[%clk 0:09:02]} 11. O-O-O
{[%clk 0:09:49.8]} 11... Nb4 {[%clk 0:08:57.9]} 12. Qf2 {[%clk 0:09:50.3]} 12...
Qc8 {[%clk 0:08:08.5]} 13. Kb1 {[%clk 0:09:48.5]} 13... d5 {[%clk 0:08:06.5]}
14. exd5 {[%clk 0:09:45.5]} 14... Nfxd5 {[%clk 0:08:05.9]} 15. Nxd5 {[%clk
0:09:46]} 15... Bxd5 {[%clk 0:08:02.6]} 16. Bb5 {[%clk 0:09:10.6]} 16... Qf5
{[%clk 0:07:51.1]} 17. Bd3 {[%clk 0:08:31.9]} 17... Nxd3 {[%clk 0:07:45]} 18.
Rxd3 {[%clk 0:08:33.8]} 18... Bc4 {[%clk 0:07:27.9]} 19. Rc3 {[%clk 0:08:27.6]}
19... b5 {[%clk 0:07:28.4]} 20. Bc5 {[%clk 0:07:46.7]} 20... Bxc5 {[%clk
0:07:12.8]} 21. Nxc5 {[%clk 0:07:48.6]} 21... Rfc8 {[%clk 0:06:33.9]} 22. Rd1
{[%clk 0:07:15.7]} 22... h6 {[%clk 0:05:54.2]} 23. Qe3 {[%clk 0:06:14.6]} 23...
e4 {[%clk 0:04:34.6]} 24. Nxe4 {[%clk 0:05:58.2]} 24... b4 {[%clk 0:04:33.8]}
25. Nd6 {[%clk 0:05:46.1]} 25... Qd7 {[%clk 0:04:33]} 26. Rxc4 {[%clk
0:04:31.9]} 26... Rxc4 {[%clk 0:04:32.2]} 27. Rd3 {[%clk 0:04:33.2]} 27... Rc6
{[%clk 0:04:12.9]} 28. Ne4 {[%clk 0:04:29.5]} 28... Qc7 {[%clk 0:04:07.9]} 29.
Qe2 {[%clk 0:04:23.8]} 29... Rd8 {[%clk 0:03:52.7]} 30. g3 {[%clk 0:03:24.9]}
30... f5 {[%clk 0:03:30.9]} 31. Nf2 {[%clk 0:03:22.2]} 31... Rxd3 {[%clk
0:03:23.5]} 32. Nxd3 {[%clk 0:03:24.1]} 32... Qd6 {[%clk 0:03:11.3]} 33. Ne5
{[%clk 0:02:48.5]} 33... Rc5 {[%clk 0:02:57.5]} 34. Nd3 {[%clk 0:02:42.5]} 34...
Rd5 {[%clk 0:02:51.7]} 35. b3 {[%clk 0:02:17.7]} 35... Kh7 {[%clk 0:02:51.3]}
36. g4 {[%clk 0:01:57.1]} 36... Qf6 {[%clk 0:02:44.4]} 37. h3 {[%clk 0:01:42.1]}
37... Qc3 {[%clk 0:02:27.8]} 38. Qe6 {[%clk 0:01:16.1]} 38... Qd4 {[%clk
0:02:23.6]} 39. gxf5 {[%clk 0:00:45.6]} 39... Rd6 {[%clk 0:02:22.5]} 40. Qe2
{[%clk 0:00:40.5]} 40... Qf6 {[%clk 0:02:13.7]} 41. Qe4 {[%clk 0:00:39.7]} 41...
Rd4 {[%clk 0:02:13.9]} 42. Qe3 {[%clk 0:00:31.1]} 42... Rd5 {[%clk 0:02:14.1]}
43. Qe4 {[%clk 0:00:19]} 43... Qxf5 {[%clk 0:02:10.9]} 44. Qe2 {[%clk
0:00:20.2]} 44... h5 {[%clk 0:01:41.4]} 45. h4 {[%clk 0:00:20.6]} 45... Rd4
{[%clk 0:01:36.1]} 46. f4 {[%clk 0:00:20.1]} 46... Kh6 {[%clk 0:01:22.9]} 47.
Qe3 {[%clk 0:00:14.9]} 47... Qe4 {[%clk 0:01:20.9]} 48. Qg3 {[%clk 0:00:13.2]}
48... g6 {[%clk 0:01:12.2]} 49. Qg5+ {[%clk 0:00:04]} 49... Kh7 {[%clk
0:01:02.3]} 50. Qg1 {[%clk 0:00:05.9]} 50... Qd5 {[%clk 0:00:24.4]} 51. f5
{[%clk 0:00:06.4]} 51... gxf5 {[%clk 0:00:18.6]} 52. Qg5 {[%clk 0:00:07.5]}
52... Qf7 {[%clk 0:00:18.5]} 53. Ne5 {[%clk 0:00:06.1]} 53... Rd1+ {[%clk
0:00:16.1]} 54. Ka2 {[%clk 0:00:06.3]} 54... Qe6 {[%clk 0:00:09.8]} 55. Qxh5+
{[%clk 0:00:06.9]} 55... Kg7 {[%clk 0:00:10.3]} 56. Qxd1 {[%clk 0:00:07.9]}
56... Qxe5 {[%clk 0:00:11.4]} 57. Qd3 {[%clk 0:00:04.6]} 57... f4 {[%clk
0:00:10]} 58. Qf3 {[%clk 0:00:04.7]} 58... Qe3 {[%clk 0:00:09.1]} 59. Qg4+
{[%clk 0:00:05.6]} 59... Kf6 {[%clk 0:00:09.3]} 60. Qg5+ {[%clk 0:00:06.9]}
60... Ke6 {[%clk 0:00:10.2]} 61. h5 {[%clk 0:00:08]} 61... Qe5 {[%clk
0:00:10.1]} 62. Qg6+ {[%clk 0:00:09.1]} 62... Qf6 {[%clk 0:00:11]} 63. Qe4+
{[%clk 0:00:10.2]} 63... Kf7 {[%clk 0:00:10.4]} 64. Qf3 {[%clk 0:00:09.8]} 64...
Kg7 {[%clk 0:00:11]} 65. Qg4+ {[%clk 0:00:10.3]} 65... Kh6 {[%clk 0:00:11.6]}
66. Qf3 {[%clk 0:00:11.8]} 66... Qf5 {[%clk 0:00:11.1]} 67. Kb2 {[%clk
0:00:11.1]} 67... Kg5 {[%clk 0:00:12]} 68. Qh1 {[%clk 0:00:09.9]} 68... f3
{[%clk 0:00:11.7]} 69. h6 {[%clk 0:00:11.2]} 69... f2 {[%clk 0:00:12.1]} 70. h7
{[%clk 0:00:12.1]} 70... Qf6+ {[%clk 0:00:12.4]} 71. Ka2 {[%clk 0:00:12.9]}
71... f1=Q {[%clk 0:00:06.2]} 72. Qxf1 {[%clk 0:00:13.3]} 72... Qxf1 {[%clk
0:00:05.5]} 73. h8=Q {[%clk 0:00:14.8]} 73... Qc1 {[%clk 0:00:05.1]} 74. Qb2
{[%clk 0:00:15.5]} 74... Qd2 {[%clk 0:00:04.4]} 75. Qb1 {[%clk 0:00:14.6]} 75...
Kf6 {[%clk 0:00:02.9]} 76. Qb2+ {[%clk 0:00:15.6]} 76... Ke6 {[%clk 0:00:02.9]}
77. Kb1 {[%clk 0:00:17]} 77... Qd1+ {[%clk 0:00:03.3]} 78. Qc1 {[%clk
0:00:18.4]} 78... Qd4 {[%clk 0:00:03.7]} 79. Qe1+ {[%clk 0:00:18.3]} 79... Kd6
{[%clk 0:00:04.4]} 80. Qe2 {[%clk 0:00:19.2]} 80... Qd5 {[%clk 0:00:04.6]} 81.
Qa6+ {[%clk 0:00:18.4]} 81... Ke5 {[%clk 0:00:05.3]} 82. Qe2+ {[%clk 0:00:19.5]}
82... Kd6 {[%clk 0:00:06]} 83. Qd3 {[%clk 0:00:20.5]} 83... Qxd3 {[%clk
0:00:04.9]} 84. cxd3 {[%clk 0:00:21.7]} 84... Ke5 {[%clk 0:00:05.7]} 85. Kc2
{[%clk 0:00:22.7]} 85... Kd5 {[%clk 0:00:06.8]} 86. Kd1 {[%clk 0:00:23.7]} 86...
Ke5 {[%clk 0:00:06.5]} 87. Ke2 {[%clk 0:00:23.8]} 87... Kf4 {[%clk 0:00:07.5]}
88. Kf2 {[%clk 0:00:24.8]} 88... Kf5 {[%clk 0:00:08.4]} 89. Kf3 {[%clk 0:00:25]}
89... Ke5 {[%clk 0:00:08.9]} 90. Ke3 {[%clk 0:00:26.5]} 90... Kd5 {[%clk
0:00:09.6]} 91. d4 {[%clk 0:00:28.1]} 91... Kd6 {[%clk 0:00:10.1]} 92. Kd3
{[%clk 0:00:29.5]} 92... Kd5 {[%clk 0:00:11.2]} 93. Ke3 {[%clk 0:00:30.1]} 93...
Ke6 {[%clk 0:00:11.3]} 94. Ke4 {[%clk 0:00:31.5]} 94... Kd6 {[%clk 0:00:12.5]}
95. d5 {[%clk 0:00:32.9]} 95... Kc5 {[%clk 0:00:13.6]} 96. Ke5 {[%clk
0:00:34.2]} 1-0